[Event "*** SCC Grand Prix: Titled Tuesday Blitz"]
[Site "Chess.com"]
[Date "2020.06.02"]
[Round "10"]
[White "topotun"]
[Black "TheoSlade"]
[Result "1/2-1/2"]
[WhiteElo "2574"]
[BlackElo "2365"]
[TimeControl "180+1"]
[EndTime "11:59:46 PDT"]
[Termination "Game drawn - insufficient material"]

1. e4 {[%clk 0:03:00.9]} 1... e5 {[%clk 0:03:00.6]} 2. Nf3 {[%clk 0:03:01.1]}
2... Nc6 {[%clk 0:03:01.2]} 3. Bc4 {[%clk 0:03:01.3]} 3... Bc5 {[%clk 0:03:01]}
4. c3 {[%clk 0:03:01.4]} 4... Nf6 {[%clk 0:03:01.4]} 5. d4 {[%clk 0:03:01.3]}
5... exd4 {[%clk 0:03:01.4]} 6. b4 {[%clk 0:03:01.4]} 6... Be7 {[%clk
0:02:48.7]} 7. e5 {[%clk 0:02:59.2]} 7... Ne4 {[%clk 0:02:47.9]} 8. O-O {[%clk
0:02:44.9]} 8... Nxc3 {[%clk 0:02:42.4]} 9. Nxc3 {[%clk 0:02:44.3]} 9... dxc3
{[%clk 0:02:43.3]} 10. b5 {[%clk 0:02:32.9]} 10... Na5 {[%clk 0:02:42.3]} 11.
Bd3 {[%clk 0:02:33.2]} 11... O-O {[%clk 0:02:39.4]} 12. Qc2 {[%clk 0:02:27.7]}
12... g6 {[%clk 0:02:35]} 13. Qxc3 {[%clk 0:02:27.6]} 13... b6 {[%clk
0:02:28.5]} 14. Bb2 {[%clk 0:02:20.9]} 14... Bb7 {[%clk 0:02:15.8]} 15. e6
{[%clk 0:02:04.5]} 15... f6 {[%clk 0:02:14.3]} 16. Ng5 {[%clk 0:02:01.2]} 16...
Bd5 {[%clk 0:02:03]} 17. Rfe1 {[%clk 0:01:49.5]} 17... Bxe6 {[%clk 0:01:58.4]}
18. Nxe6 {[%clk 0:01:45.7]} 18... dxe6 {[%clk 0:01:59.3]} 19. Rxe6 {[%clk
0:01:46.2]} 19... Qd7 {[%clk 0:01:52.6]} 20. Rae1 {[%clk 0:01:43.9]} 20... Rae8
{[%clk 0:01:52.9]} 21. h4 {[%clk 0:01:14.6]} 21... Bb4 {[%clk 0:01:46.2]} 22.
Qxb4 {[%clk 0:00:55.1]} 22... Rxe6 {[%clk 0:01:46.1]} 23. Rd1 {[%clk 0:00:55.6]}
23... Rd6 {[%clk 0:01:35.8]} 24. Bc4+ {[%clk 0:00:43.6]} 24... Nxc4 {[%clk
0:01:36.2]} 25. Qxc4+ {[%clk 0:00:44.5]} 25... Kg7 {[%clk 0:01:35.6]} 26. Rf1
{[%clk 0:00:44.1]} 26... Re8 {[%clk 0:01:34.2]} 27. h5 {[%clk 0:00:43.7]} 27...
Rd5 {[%clk 0:01:31.3]} 28. hxg6 {[%clk 0:00:42.8]} 28... hxg6 {[%clk 0:01:31]}
29. a4 {[%clk 0:00:42.8]} 29... Rh8 {[%clk 0:01:22.3]} 30. Qf4 {[%clk
0:00:37.5]} 30... Qd6 {[%clk 0:01:19.7]} 31. Qxd6 {[%clk 0:00:31.7]} 31... Rxd6
{[%clk 0:01:20.6]} 32. Rc1 {[%clk 0:00:31.7]} 32... Rd7 {[%clk 0:01:17.9]} 33.
g4 {[%clk 0:00:31.4]} 33... Rhd8 {[%clk 0:01:08.6]} 34. Rc6 {[%clk 0:00:30]}
34... Rd6 {[%clk 0:01:00.8]} 35. Rxc7+ {[%clk 0:00:30.1]} 35... R8d7 {[%clk
0:01:01]} 36. Rc4 {[%clk 0:00:30.2]} 36... Kf7 {[%clk 0:00:55.1]} 37. Kg2 {[%clk
0:00:30.4]} 37... Rd2 {[%clk 0:00:54.7]} 38. Ba1 {[%clk 0:00:25.6]} 38... Rd1
{[%clk 0:00:53.2]} 39. Bb2 {[%clk 0:00:23.2]} 39... R1d2 {[%clk 0:00:49.8]} 40.
Ba1 {[%clk 0:00:22.9]} 40... Ra2 {[%clk 0:00:45.2]} 41. Bd4 {[%clk 0:00:20.6]}
41... f5 {[%clk 0:00:40.7]} 42. gxf5 {[%clk 0:00:20.3]} 42... gxf5 {[%clk
0:00:41.6]} 43. Be3 {[%clk 0:00:20.3]} 43... Ra3 {[%clk 0:00:37.1]} 44. Kf3
{[%clk 0:00:19.3]} 44... Rad3 {[%clk 0:00:35.9]} 45. Kf4 {[%clk 0:00:19]} 45...
Ke6 {[%clk 0:00:33.7]} 46. Rc8 {[%clk 0:00:12.7]} 46... Rg7 {[%clk 0:00:32.8]}
47. Rc6+ {[%clk 0:00:12.4]} 47... Rd6 {[%clk 0:00:30.4]} 48. Rxd6+ {[%clk
0:00:12.1]} 48... Kxd6 {[%clk 0:00:31.3]} 49. Kxf5 {[%clk 0:00:13]} 49... Rf7+
{[%clk 0:00:30.9]} 50. Ke4 {[%clk 0:00:12.9]} 50... Ke6 {[%clk 0:00:24.9]} 51.
Kd4 {[%clk 0:00:11.5]} 51... Rd7+ {[%clk 0:00:24.6]} 52. Kc4 {[%clk 0:00:11.8]}
52... Ke5 {[%clk 0:00:24.5]} 53. Kb4 {[%clk 0:00:11.3]} 53... Ke4 {[%clk
0:00:24.1]} 54. a5 {[%clk 0:00:11.6]} 54... Rd6 {[%clk 0:00:21.5]} 55. axb6
{[%clk 0:00:11.4]} 55... axb6 {[%clk 0:00:22.4]} 56. Kc4 {[%clk 0:00:12]} 56...
Rf6 {[%clk 0:00:19.2]} 57. Kc3 {[%clk 0:00:08.5]} 57... Kf3 {[%clk 0:00:18.2]}
58. Kd4 {[%clk 0:00:08.2]} 58... Rf5 {[%clk 0:00:15.9]} 59. Kc4 {[%clk 0:00:08]}
59... Rf6 {[%clk 0:00:15.5]} 60. Kd5 {[%clk 0:00:08.3]} 60... Rg6 {[%clk
0:00:13.9]} 61. Bxb6 {[%clk 0:00:08.1]} 61... Rxb6 {[%clk 0:00:13.4]} 62. Kc5
{[%clk 0:00:08.7]} 62... Rh6 {[%clk 0:00:11.5]} 63. b6 {[%clk 0:00:09.6]} 63...
Ke4 {[%clk 0:00:10.3]} 64. b7 {[%clk 0:00:09.3]} 64... Rh8 {[%clk 0:00:10.3]}
65. Kc6 {[%clk 0:00:09.7]} 65... Ke5 {[%clk 0:00:10]} 66. Kc7 {[%clk 0:00:10]}
66... Rh7+ {[%clk 0:00:10.5]} 67. Kb6 {[%clk 0:00:10.3]} 67... Rh8 {[%clk
0:00:08.7]} 68. Ka7 {[%clk 0:00:10.5]} 68... Rh7 {[%clk 0:00:07.4]} 69. Ka8
{[%clk 0:00:10.4]} 69... Rxb7 {[%clk 0:00:05.9]} 70. Kxb7 {[%clk 0:00:10.5]}
70... Ke4 {[%clk 0:00:06.5]} 71. Kc6 {[%clk 0:00:11.2]} 71... Kf3 {[%clk
0:00:07]} 72. Kd5 {[%clk 0:00:11.7]} 72... Kxf2 {[%clk 0:00:07.6]} 1/2-1/2

[Event "*** SCC Grand Prix: Titled Tuesday Blitz"]
[Site "Chess.com"]
[Date "2020.06.02"]
[Round "10"]
[White "Titus369"]
[Black "Smile2005"]
[Result "1/2-1/2"]
[WhiteElo "2563"]
[BlackElo "2427"]
[TimeControl "180+1"]
[EndTime "11:59:47 PDT"]
[Termination "Game drawn by repetition"]

1. e4 {[%clk 0:03:00.9]} 1... d5 {[%clk 0:02:59.1]} 2. exd5 {[%clk 0:03:00.4]}
2... Nf6 {[%clk 0:02:59.5]} 3. Nf3 {[%clk 0:02:59.6]} 3... Nxd5 {[%clk 0:03:00]}
4. d4 {[%clk 0:02:58.3]} 4... Bg4 {[%clk 0:03:00.2]} 5. Be2 {[%clk 0:02:53.3]}
5... e6 {[%clk 0:03:00.1]} 6. O-O {[%clk 0:02:51.4]} 6... Be7 {[%clk 0:03:00.4]}
7. Ne5 {[%clk 0:02:49.9]} 7... Bxe2 {[%clk 0:03:00.3]} 8. Qxe2 {[%clk
0:02:50.8]} 8... O-O {[%clk 0:03:01]} 9. c4 {[%clk 0:02:47.3]} 9... Nb6 {[%clk
0:03:01.2]} 10. Be3 {[%clk 0:02:44.6]} 10... N8d7 {[%clk 0:03:00.4]} 11. Nf3
{[%clk 0:02:42.2]} 11... Nb8 {[%clk 0:02:56.2]} 12. Nc3 {[%clk 0:02:41.1]} 12...
Nc6 {[%clk 0:02:56]} 13. Rfd1 {[%clk 0:02:40.6]} 13... Re8 {[%clk 0:02:47.1]}
14. Rac1 {[%clk 0:02:38.2]} 14... Qd7 {[%clk 0:02:43.7]} 15. d5 {[%clk
0:02:36.9]} 15... exd5 {[%clk 0:02:43.7]} 16. cxd5 {[%clk 0:02:37.8]} 16... Nb4
{[%clk 0:02:40.2]} 17. Ne5 {[%clk 0:02:27.7]} 17... Qf5 {[%clk 0:02:34.8]} 18.
Nf3 {[%clk 0:01:59.7]} 18... Bd6 {[%clk 0:02:32.7]} 19. Nd4 {[%clk 0:01:36.3]}
19... Qe5 {[%clk 0:02:27.4]} 20. Nf3 {[%clk 0:01:18.3]} 20... Qf5 {[%clk
0:02:25.9]} 21. Nd4 {[%clk 0:01:17.8]} 21... Qe5 {[%clk 0:02:23.6]} 22. Nf3
{[%clk 0:01:17.7]} 22... Qh5 {[%clk 0:02:09.8]} 23. a3 {[%clk 0:01:12.5]} 23...
N4xd5 {[%clk 0:02:09.6]} 24. Nxd5 {[%clk 0:01:12.1]} 24... Nxd5 {[%clk
0:02:09.7]} 25. Qb5 {[%clk 0:01:12.4]} 25... c6 {[%clk 0:01:59.2]} 26. Qxb7
{[%clk 0:01:10.7]} 26... Nxe3 {[%clk 0:01:25.5]} 27. fxe3 {[%clk 0:01:00.7]}
27... Bc5 {[%clk 0:01:23.7]} 28. Rc3 {[%clk 0:00:50.5]} 28... Rab8 {[%clk
0:01:17.3]} 29. Qxc6 {[%clk 0:00:38.3]} 29... Bxe3+ {[%clk 0:01:11.2]} 30. Kh1
{[%clk 0:00:35.6]} 30... Bb6 {[%clk 0:01:01.6]} 31. Rcd3 {[%clk 0:00:29.9]}
31... h6 {[%clk 0:00:50.7]} 32. Rd7 {[%clk 0:00:20.5]} 32... Rbc8 {[%clk
0:00:41.5]} 33. Qd5 {[%clk 0:00:20.7]} 33... Qxd5 {[%clk 0:00:38.4]} 34. R7xd5
{[%clk 0:00:21.6]} 34... Rc2 {[%clk 0:00:37.5]} 35. R5d2 {[%clk 0:00:21.4]}
35... Rxd2 {[%clk 0:00:34.8]} 36. Rxd2 {[%clk 0:00:22.3]} 36... Rc8 {[%clk
0:00:33.6]} 37. g3 {[%clk 0:00:19.4]} 37... Rc1+ {[%clk 0:00:32.5]} 38. Kg2
{[%clk 0:00:19.8]} 38... Rb1 {[%clk 0:00:32.1]} 39. h3 {[%clk 0:00:18.2]} 39...
g6 {[%clk 0:00:32.3]} 40. Ne5 {[%clk 0:00:15.7]} 40... Kg7 {[%clk 0:00:32.8]}
41. Nc4 {[%clk 0:00:14.9]} 41... Rc1 {[%clk 0:00:32.4]} 42. Nxb6 {[%clk
0:00:12.8]} 42... axb6 {[%clk 0:00:32.5]} 43. h4 {[%clk 0:00:12]} 43... Rb1
{[%clk 0:00:30.3]} 44. Kh3 {[%clk 0:00:10.6]} 44... g5 {[%clk 0:00:30.5]} 45.
hxg5 {[%clk 0:00:10.4]} 45... hxg5 {[%clk 0:00:30.9]} 46. Kg4 {[%clk 0:00:11]}
46... f6 {[%clk 0:00:22.2]} 47. Rc2 {[%clk 0:00:07.9]} 47... Kg6 {[%clk
0:00:21.9]} 48. Kh3 {[%clk 0:00:08.1]} 48... Rh1+ {[%clk 0:00:19.4]} 49. Kg2
{[%clk 0:00:08.1]} 49... Rb1 {[%clk 0:00:19.5]} 50. Kh3 {[%clk 0:00:08.5]} 50...
Rh1+ {[%clk 0:00:18.9]} 51. Kg2 {[%clk 0:00:08.8]} 51... Rb1 {[%clk 0:00:19]}
52. Kf3 {[%clk 0:00:05.1]} 52... Rf1+ {[%clk 0:00:14.9]} 53. Rf2 {[%clk
0:00:03.9]} 53... Rb1 {[%clk 0:00:14.7]} 54. Kg2 {[%clk 0:00:03.4]} 54... g4
{[%clk 0:00:11]} 55. Rc2 {[%clk 0:00:02.4]} 55... Kg5 {[%clk 0:00:11.1]} 56. Kf2
{[%clk 0:00:02.2]} 56... f5 {[%clk 0:00:10.8]} 57. Kg2 {[%clk 0:00:02.8]} 57...
Rd1 {[%clk 0:00:08.9]} 58. Re2 {[%clk 0:00:02.7]} 58... Rc1 {[%clk 0:00:08.5]}
59. Rf2 {[%clk 0:00:03]} 59... Rb1 {[%clk 0:00:08.8]} 60. Rc2 {[%clk 0:00:03.3]}
60... Rd1 {[%clk 0:00:08.5]} 61. Rf2 {[%clk 0:00:03.8]} 61... Rb1 {[%clk
0:00:08.7]} 62. Rd2 {[%clk 0:00:04.2]} 62... Rc1 {[%clk 0:00:09]} 63. Rf2 {[%clk
0:00:04.7]} 63... Rb1 {[%clk 0:00:09.6]} 1/2-1/2

[Event "*** SCC Grand Prix: Titled Tuesday Blitz"]
[Site "Chess.com"]
[Date "2020.06.02"]
[Round "10"]
[White "lifeissofun"]
[Black "ElviraBerend"]
[Result "1/2-1/2"]
[WhiteElo "2267"]
[BlackElo "2381"]
[TimeControl "180+1"]
[EndTime "11:59:57 PDT"]
[Termination "Game drawn - insufficient material"]

1. e4 {[%clk 0:03:00.9]} 1... e5 {[%clk 0:02:59.4]} 2. Nf3 {[%clk 0:03:01.5]}
2... Nc6 {[%clk 0:02:59]} 3. Bb5 {[%clk 0:03:02.2]} 3... Nf6 {[%clk 0:02:58.1]}
4. O-O {[%clk 0:03:01.2]} 4... Nxe4 {[%clk 0:02:56.5]} 5. Re1 {[%clk 0:03:01]}
5... Nd6 {[%clk 0:02:55.9]} 6. Bxc6 {[%clk 0:03:01.6]} 6... dxc6 {[%clk
0:02:54]} 7. Rxe5+ {[%clk 0:03:02.5]} 7... Be7 {[%clk 0:02:51.1]} 8. d4 {[%clk
0:03:03.4]} 8... O-O {[%clk 0:02:50.1]} 9. Nc3 {[%clk 0:02:59.1]} 9... Bf6
{[%clk 0:02:48.1]} 10. Re2 {[%clk 0:02:58.5]} 10... Bg4 {[%clk 0:02:47.6]} 11.
Rd2 {[%clk 0:02:45.3]} 11... Re8 {[%clk 0:02:42.3]} 12. h3 {[%clk 0:02:43.6]}
12... Bh5 {[%clk 0:02:41.2]} 13. Rd3 {[%clk 0:02:41.5]} 13... Qd7 {[%clk
0:02:29.9]} 14. Bf4 {[%clk 0:02:36.8]} 14... Bg6 {[%clk 0:02:24.1]} 15. Re3
{[%clk 0:02:36.3]} 15... Nc4 {[%clk 0:02:23.4]} 16. Rxe8+ {[%clk 0:02:32.3]}
16... Rxe8 {[%clk 0:02:22.4]} 17. b3 {[%clk 0:02:32]} 17... Na3 {[%clk
0:02:13.7]} 18. Rc1 {[%clk 0:02:27.9]} 18... Bh5 {[%clk 0:02:06.7]} 19. g4
{[%clk 0:02:23.8]} 19... Bg6 {[%clk 0:02:00.8]} 20. Be5 {[%clk 0:02:12.3]} 20...
Be7 {[%clk 0:01:57.8]} 21. Bg3 {[%clk 0:02:08.3]} 21... Nb5 {[%clk 0:01:54.7]}
22. Nxb5 {[%clk 0:02:00.1]} 22... cxb5 {[%clk 0:01:54]} 23. c4 {[%clk 0:01:59]}
23... Ba3 {[%clk 0:01:50.7]} 24. Rc3 {[%clk 0:01:55.4]} 24... bxc4 {[%clk
0:01:39.4]} 25. bxc4 {[%clk 0:01:54.6]} 25... Bb2 {[%clk 0:01:37]} 26. Rb3
{[%clk 0:01:51.7]} 26... Qa4 {[%clk 0:01:30.4]} 27. Qd2 {[%clk 0:01:37.2]} 27...
Ba3 {[%clk 0:01:26.5]} 28. Qc3 {[%clk 0:01:25.8]} 28... Bd6 {[%clk 0:01:22.5]}
29. Bxd6 {[%clk 0:01:21]} 29... cxd6 {[%clk 0:01:22]} 30. Rxb7 {[%clk
0:01:18.7]} 30... Be4 {[%clk 0:01:18.9]} 31. Rb3 {[%clk 0:01:09]} 31... Qxa2
{[%clk 0:01:17.8]} 32. c5 {[%clk 0:01:04.1]} 32... dxc5 {[%clk 0:01:15.4]} 33.
dxc5 {[%clk 0:01:04.1]} 33... Bd5 {[%clk 0:01:15.3]} 34. Ra3 {[%clk 0:01:03.8]}
34... Qb1+ {[%clk 0:01:14.6]} 35. Kg2 {[%clk 0:01:04.1]} 35... Bc6 {[%clk
0:01:04.3]} 36. Rxa7 {[%clk 0:01:01.4]} 36... h6 {[%clk 0:01:02.1]} 37. Qc4
{[%clk 0:00:55]} 37... Rf8 {[%clk 0:00:58.5]} 38. Qf4 {[%clk 0:00:54.2]} 38...
Qc2 {[%clk 0:00:55.1]} 39. Qe3 {[%clk 0:00:48.8]} 39... Qc4 {[%clk 0:00:52.1]}
40. Rc7 {[%clk 0:00:48.3]} 40... Qd5 {[%clk 0:00:51.2]} 41. Kg3 {[%clk
0:00:47.6]} 41... Re8 {[%clk 0:00:50.3]} 42. Qf4 {[%clk 0:00:46.4]} 42... Ra8
{[%clk 0:00:47.6]} 43. Re7 {[%clk 0:00:37.1]} 43... Ra3 {[%clk 0:00:44.6]} 44.
Re3 {[%clk 0:00:36.3]} 44... Rxe3 {[%clk 0:00:43.4]} 45. Qxe3 {[%clk 0:00:36.9]}
45... g5 {[%clk 0:00:41.7]} 46. h4 {[%clk 0:00:31.9]} 46... f6 {[%clk
0:00:39.6]} 47. Qc3 {[%clk 0:00:28.3]} 47... Kf7 {[%clk 0:00:37.2]} 48. hxg5
{[%clk 0:00:27.7]} 48... hxg5 {[%clk 0:00:36.9]} 49. Qe3 {[%clk 0:00:27.2]}
49... Kf8 {[%clk 0:00:34.8]} 50. Qc3 {[%clk 0:00:26.8]} 50... Kf7 {[%clk
0:00:34.4]} 51. Qe3 {[%clk 0:00:27]} 51... Kf8 {[%clk 0:00:33.9]} 52. Ne1 {[%clk
0:00:23.9]} 52... Qh1 {[%clk 0:00:30]} 53. Nf3 {[%clk 0:00:16.2]} 53... Qd1
{[%clk 0:00:27.3]} 54. Qc3 {[%clk 0:00:15.4]} 54... Kg7 {[%clk 0:00:25]} 55. Qe3
{[%clk 0:00:14.9]} 55... Qd5 {[%clk 0:00:23.5]} 56. Qe7+ {[%clk 0:00:13.8]}
56... Kg8 {[%clk 0:00:22.7]} 57. Qxf6 {[%clk 0:00:12.5]} 57... Qxc5 {[%clk
0:00:18.3]} 58. Qxg5+ {[%clk 0:00:12.6]} 58... Qxg5 {[%clk 0:00:17.5]} 59. Nxg5
{[%clk 0:00:13.5]} 59... Kg7 {[%clk 0:00:17.8]} 60. f4 {[%clk 0:00:14.1]} 60...
Kf6 {[%clk 0:00:17.6]} 61. Kf2 {[%clk 0:00:14.4]} 61... Bb7 {[%clk 0:00:17.5]}
62. Ke3 {[%clk 0:00:15]} 62... Ba8 {[%clk 0:00:17.5]} 63. Ne4+ {[%clk
0:00:15.6]} 63... Kg6 {[%clk 0:00:16.7]} 64. f5+ {[%clk 0:00:15.7]} 64... Kf7
{[%clk 0:00:17]} 65. Kf4 {[%clk 0:00:16.5]} 65... Bb7 {[%clk 0:00:17.1]} 66. g5
{[%clk 0:00:16.4]} 66... Bc8 {[%clk 0:00:17]} 67. g6+ {[%clk 0:00:16.4]} 67...
Kg7 {[%clk 0:00:16.6]} 68. Kg5 {[%clk 0:00:17]} 68... Bd7 {[%clk 0:00:14.2]} 69.
f6+ {[%clk 0:00:17.9]} 69... Kg8 {[%clk 0:00:14.2]} 70. f7+ {[%clk 0:00:16.2]}
70... Kg7 {[%clk 0:00:13.9]} 71. Nd6 {[%clk 0:00:15.6]} 71... Be6 {[%clk
0:00:13.2]} 72. Ne8+ {[%clk 0:00:14.4]} 72... Kf8 {[%clk 0:00:12.5]} 73. Nf6
{[%clk 0:00:13.7]} 73... Bxf7 {[%clk 0:00:12.5]} 74. Nd7+ {[%clk 0:00:05]} 74...
Kg7 {[%clk 0:00:12.1]} 75. Nf8 {[%clk 0:00:02.4]} 75... Bxg6 {[%clk 0:00:09.9]}
1/2-1/2

[Event "*** SCC Grand Prix: Titled Tuesday Blitz"]
[Site "Chess.com"]
[Date "2020.06.02"]
[Round "10"]
[White "Alexander_Zubov"]
[Black "fodorpoti"]
[Result "1/2-1/2"]
[WhiteElo "2957"]
[BlackElo "2781"]
[TimeControl "180+1"]
[EndTime "12:00:01 PDT"]
[Termination "Game drawn - insufficient material"]

1. d4 {[%clk 0:03:00.9]} 1... d5 {[%clk 0:02:59.5]} 2. c4 {[%clk 0:03:00.1]}
2... e6 {[%clk 0:02:59.7]} 3. Nf3 {[%clk 0:02:59.1]} 3... c6 {[%clk 0:02:59.7]}
4. Qc2 {[%clk 0:02:57.7]} 4... Nf6 {[%clk 0:02:56]} 5. Bg5 {[%clk 0:02:56.6]}
5... Nbd7 {[%clk 0:02:55.4]} 6. Nbd2 {[%clk 0:02:55.2]} 6... Be7 {[%clk
0:02:54.5]} 7. Rc1 {[%clk 0:02:54.2]} 7... O-O {[%clk 0:02:54.3]} 8. e3 {[%clk
0:02:54.2]} 8... Ne4 {[%clk 0:02:38.3]} 9. Bxe7 {[%clk 0:02:51.8]} 9... Qxe7
{[%clk 0:02:38.7]} 10. Bd3 {[%clk 0:02:33.1]} 10... f5 {[%clk 0:02:38]} 11. O-O
{[%clk 0:02:32.3]} 11... Qf6 {[%clk 0:02:29.7]} 12. b4 {[%clk 0:02:29.2]} 12...
g5 {[%clk 0:02:22.9]} 13. g3 {[%clk 0:02:27.9]} 13... g4 {[%clk 0:02:21]} 14.
Nh4 {[%clk 0:02:26.9]} 14... Ng5 {[%clk 0:02:14]} 15. b5 {[%clk 0:02:14.2]}
15... Nb6 {[%clk 0:02:00]} 16. a4 {[%clk 0:02:11.1]} 16... dxc4 {[%clk
0:01:56.5]} 17. Nxc4 {[%clk 0:02:03.4]} 17... Nd5 {[%clk 0:01:56.2]} 18. bxc6
{[%clk 0:01:59]} 18... bxc6 {[%clk 0:01:55.1]} 19. Ne5 {[%clk 0:01:58.3]} 19...
Nb4 {[%clk 0:01:49.5]} 20. Qd2 {[%clk 0:01:49.2]} 20... a5 {[%clk 0:01:49.3]}
21. Rfd1 {[%clk 0:01:40.1]} 21... Rd8 {[%clk 0:01:47]} 22. Nxc6 {[%clk 0:01:36]}
22... Nh3+ {[%clk 0:01:37.5]} 23. Kg2 {[%clk 0:01:00.6]} 23... Nxc6 {[%clk
0:01:36.8]} 24. Rxc6 {[%clk 0:00:59.7]} 24... Bb7 {[%clk 0:01:36.7]} 25. Bb5
{[%clk 0:00:58.1]} 25... Rac8 {[%clk 0:01:30.2]} 26. Rc1 {[%clk 0:00:56]} 26...
e5 {[%clk 0:01:13.1]} 27. Qa2+ {[%clk 0:00:51]} 27... Kh8 {[%clk 0:01:09.2]} 28.
d5 {[%clk 0:00:50.6]} 28... Bxc6 {[%clk 0:01:09.7]} 29. Bxc6 {[%clk 0:00:49.9]}
29... f4 {[%clk 0:01:05.6]} 30. exf4 {[%clk 0:00:46.8]} 30... exf4 {[%clk
0:01:05.2]} 31. Qa1 {[%clk 0:00:46.4]} 31... Rd6 {[%clk 0:00:53.7]} 32. Nf5
{[%clk 0:00:23.8]} 32... f3+ {[%clk 0:00:42.3]} 33. Kf1 {[%clk 0:00:22.2]} 33...
Qxa1 {[%clk 0:00:35.1]} 34. Rxa1 {[%clk 0:00:22.1]} 34... Rdxc6 {[%clk
0:00:32.6]} 35. dxc6 {[%clk 0:00:21.2]} 35... Rxc6 {[%clk 0:00:33.5]} 36. Ne3
{[%clk 0:00:17.8]} 36... h5 {[%clk 0:00:32.9]} 37. Ke1 {[%clk 0:00:17.9]} 37...
Rb6 {[%clk 0:00:29]} 38. Nc4 {[%clk 0:00:15.1]} 38... Re6+ {[%clk 0:00:29.1]}
39. Ne3 {[%clk 0:00:14.9]} 39... Rb6 {[%clk 0:00:25.9]} 40. Nc4 {[%clk
0:00:13.8]} 40... Rb4 {[%clk 0:00:25.9]} 41. Nxa5 {[%clk 0:00:13.2]} 41... Re4+
{[%clk 0:00:26]} 42. Kd2 {[%clk 0:00:13.6]} 42... Re2+ {[%clk 0:00:26.3]} 43.
Kc3 {[%clk 0:00:13]} 43... Nxf2 {[%clk 0:00:26.6]} 44. Nc4 {[%clk 0:00:13.5]}
44... Ne4+ {[%clk 0:00:24.5]} 45. Kd3 {[%clk 0:00:13.7]} 45... Nc5+ {[%clk
0:00:24.8]} 46. Kc3 {[%clk 0:00:13.1]} 46... f2 {[%clk 0:00:25.2]} 47. Rf1
{[%clk 0:00:12.7]} 47... Re1 {[%clk 0:00:15.3]} 48. Nd2 {[%clk 0:00:10]} 48...
Ne4+ {[%clk 0:00:14.4]} 49. Kb4 {[%clk 0:00:09.9]} 49... Nxd2 {[%clk 0:00:13.4]}
50. Rxf2 {[%clk 0:00:10.1]} 50... Ne4 {[%clk 0:00:13.4]} 51. Ra2 {[%clk
0:00:09.3]} 51... Rb1+ {[%clk 0:00:12.5]} 52. Kc4 {[%clk 0:00:08.9]} 52... Kg7
{[%clk 0:00:12.9]} 53. a5 {[%clk 0:00:08.6]} 53... Nd6+ {[%clk 0:00:13]} 54. Kd5
{[%clk 0:00:08.4]} 54... Nb5 {[%clk 0:00:13.1]} 55. Kc5 {[%clk 0:00:07.1]} 55...
Na7 {[%clk 0:00:13.5]} 56. a6 {[%clk 0:00:06.7]} 56... Rb5+ {[%clk 0:00:13.3]}
57. Kd6 {[%clk 0:00:06.9]} 57... Kf6 {[%clk 0:00:13.5]} 58. Kc7 {[%clk 0:00:07]}
58... Rb3 {[%clk 0:00:12]} 59. Re2 {[%clk 0:00:05.2]} 59... Nb5+ {[%clk
0:00:11]} 60. Kd7 {[%clk 0:00:05.1]} 60... Ra3 {[%clk 0:00:11.5]} 61. Re6+
{[%clk 0:00:04.9]} 61... Kf5 {[%clk 0:00:11.6]} 62. Rh6 {[%clk 0:00:04.8]} 62...
Kg5 {[%clk 0:00:11.9]} 63. Rb6 {[%clk 0:00:04.8]} 63... Nd4 {[%clk 0:00:12]} 64.
Kc7 {[%clk 0:00:05.1]} 64... Nf3 {[%clk 0:00:12.2]} 65. Rb5+ {[%clk 0:00:03.9]}
65... Kg6 {[%clk 0:00:12.2]} 66. Kb6 {[%clk 0:00:04.8]} 66... Rxa6+ {[%clk
0:00:10.1]} 67. Kxa6 {[%clk 0:00:05.3]} 67... Nxh2 {[%clk 0:00:11]} 68. Rb6+
{[%clk 0:00:05.9]} 68... Kg5 {[%clk 0:00:10.9]} 69. Rb5+ {[%clk 0:00:06]} 69...
Kg6 {[%clk 0:00:10.8]} 70. Rb6+ {[%clk 0:00:06.6]} 70... Kf5 {[%clk 0:00:10.5]}
71. Rb5+ {[%clk 0:00:06.8]} 71... Ke4 {[%clk 0:00:07.9]} 72. Rxh5 {[%clk
0:00:06.5]} 72... Nf1 {[%clk 0:00:08.4]} 73. Rg5 {[%clk 0:00:06.7]} 73... Kf3
{[%clk 0:00:08.8]} 74. Rxg4 {[%clk 0:00:06.5]} 74... Kxg4 {[%clk 0:00:09.2]} 75.
Kb5 {[%clk 0:00:05.8]} 75... Nxg3 {[%clk 0:00:10.1]} 1/2-1/2